bitfinex/quotes_ETHUSD_20250415
["timestamp","ask_amount","ask_price","bid_price","bid_amount"]
[1744725665428,6.13245,1630.7,1630.3,6.13361]
[1744725665619,6.13245,1630.7,1630.3,12.26729]
[1744725665799,6.13245,1630.7,1630.1,7.16042]
[1744725665800,7.77564,1631.4,1630.6,6.13261]
[1744725666000,7.77574,1631.4,1631.1,6.1307]
[1744725666201,6.13096,1631.1,1630.8,6.1319]
[1744725666416,6.13147,1631.0,1630.6,16.39066]
[1744725666590,6.13044,1631.3,1630.9,6.13128]
[1744725666789,0.8,1631.3,1630.6,10.258]
[1744725667031,0.8,1631.3,1631.2,6.13045]
[1744725667216,0.8,1631.3,1631.2,6.19174961]
[1744725667422,0.05,1631.4,1631.3,6.13008]
[1744725667992,0.3924884,1632.2,1631.4,1.5796]
[1744725668335,6.12735,1632.1,1631.7,6.12831]
[1744725668629,6.12729,1632.1,1631.7,6.12831]
[1744725668829,6.12786,1631.9,1631.5,6.12931]
[1744725668994,2.86415084,1632.1,1631.4,1.5796]
[1744725669213,6.12758,1632.0,1631.6,6.12881]
[1744725669440,6.12842,1631.8,1631.4,6.1295]
[1744725669610,12.25779,1631.7,1631.3,6.13006]
[1744725669815,6.12788,1631.9,1631.1,7.73297]
[1744725670120,7.72661,1632.1,1631.4,6.1297]
[1744725670326,7.72661,1632.1,1631.7,6.12843]
[1744725670530,6.12762,1632.0,1631.7,6.12856]
[1744725670708,6.12762,1632.0,1631.6,6.1289]
[1744725670709,1.5995,1632.1,1631.5,6.12919]
[1744725670915,6.12873,1631.7,1631.3,16.38501]
[1744725671115,6.12873,1631.7,1631.3,16.38495]
[1744725671315,6.12949,1631.5,1631.1,7.73321]
[1744725671529,6.12858,1631.7,1631.1,1.6025]
[1744725671727,6.12804,1631.9,1631.1,1.6025]
[1744725671728,6.12785,1631.9,1631.3,6.13008]
[1744725671949,7.72671,1632.1,1631.7,6.12827]
[1744725672147,6.128,1631.9,1631.5,6.12895]
[1744725672652,6.12745,1632.0,1631.6,6.12877]
[1744725672944,7.72663,1632.1,1631.5,6.12919]
[1744725672945,6.12782,1631.9,1631.5,6.12919]
[1744725673116,0.612782,1631.9,1631.2,6.13013]
[1744725673319,6.12822,1631.8,1631.1,5.73986757]
[1744725673545,6.12822,1631.8,1631.4,6.12943]
[1744725673727,6.12783,1631.9,1631.5,6.12915]
[1744725674645,12.25587,1631.9,1631.5,6.12915]
[1744725674852,1.5995,1632.1,1631.6,6.12867]
[1744725674853,6.12745,1632.0,1631.6,6.12867]
[1744725675023,6.12745,1632.0,1631.7,0.0612787]
[1744725675348,1.5995,1632.1,1631.7,0.0612787]
[1744725675646,7.67419,1631.7,1630.8,1.6354]
[1744725675851,6.13123,1631.0,1630.7,9.951]
[1744725676072,6.13085,1631.1,1630.3,6.13353]
[1744725676073,6.13212,1630.8,1630.4,6.13327]
[1744725676217,7.67633,1631.1,1630.3,9.951]
[1744725676218,6.133,1630.6,1630.3,6.13368]
[1744725676421,6.13254,1630.7,1630.3,13.65781]
[1744725676646,6.1312,1631.0,1630.3,1.39032]
[1744725676848,1.5455,1631.1,1630.5,6.13273]
[1744725677154,0.7,1630.6,1630.5,6.13273]
[1744725677354,1.5455,1631.1,1630.4,6.13329]
[1744725677355,6.1322,1630.8,1630.4,6.13329]
[1744725677555,7.67633,1631.1,1630.4,6.13329]
[1744725677556,12.26353,1630.9,1630.4,6.13329]
[1744725677726,6.13211,1630.8,1630.4,12.26661]
[1744725677922,1.5455,1631.1,1630.6,6.13258]
[1744725678122,6.13141,1631.0,1630.6,6.13258]
[1744725678330,7.67641,1631.1,1630.7,6.13196]
[1744725678639,1.5567,1630.5,1629.4,6.13688]
[1744725678826,6.13591,1629.8,1629.4,1.097098]
[1744725679026,6.13798,1629.2,1629.1,0.05]
[1744725679227,6.13729,1629.4,1629.1,0.05]
[1744725679427,14.42066956,1629.9,1629.1,0.05]
[1744725679627,1.5567,1629.9,1629.6,6.13625]
[1744725679959,6.13739,1629.4,1629.1,0.05]
[1744725680160,6.136,1629.8,1629.1,6.18828]
[1744725680460,6.13701,1629.5,1629.2,0.618828]
[1744725680760,1.5567,1629.9,1629.1,6.18832]
[1744725680933,1.5567,1629.9,1629.4,6.13693]
[1744725680934,7.69225,1629.9,1629.4,6.13693]
[1744725681137,7.69225,1629.9,1629.5,6.13665]
[1744725681361,6.13575,1629.8,1629.4,12.27402]
[1744725681676,6.13669,1629.6,1629.2,6.1379]
[1744725682030,1.5567,1629.9,1629.1,0.05]
[1744725682259,6.13516,1630.0,1629.5,6.13683]
[1744725682564,6.13524,1630.0,1629.6,6.13625]
[1744725682880,7.77816,1630.2,1629.8,6.13566]
[1744725683029,1.6439,1630.2,1629.5,1.506]
[1744725683364,6.1357,1629.9,1629.5,6.13669]
[1744725683665,7.77817,1630.2,1629.5,0.764306]
[1744725683964,1.6439,1630.2,1629.6,6.13644]
[1744725684188,7.77839,1630.2,1629.5,6.901136]
[1744725684392,1.6312,1630.5,1630.4,6.13346]
[1744725684610,1.523,1630.8,1630.1,6.13431]
[1744725684891,16.4061893,1631.3,1630.9,6.1314]
[1744725684892,1.523,1631.1,1630.9,6.1314]
[1744725685070,7.65275,1631.4,1631.0,6.13086]
[1744725685400,11.479,1631.7,1631.1,6.13078]
[1744725685587,6.1302,1631.3,1630.9,6.13141]
[1744725685797,11.479,1631.7,1631.0,6.13102]
[1744725685956,1.1479,1631.6,1630.9,0.06130383]
[1744725686155,12.25907,1631.5,1631.0,6.13086]
[1744725686390,6.12932,1631.5,1630.9,6.13152]
[1744725686693,6.12945,1631.5,1631.1,6.13057]
[1744725686899,1.1479,1631.6,1631.0,6.13117]
[1744725687063,6.12932,1631.5,1630.8,7.64904]
[1744725687262,9.3271239,1632.3,1630.9,6.19288086]
[1744725687569,6.12986,1631.4,1630.8,2.282004]
[1744725687787,6.12938,1631.5,1631.1,12.26124]
[1744725688089,6.13027,1631.3,1630.9,6.13143]
[1744725688289,6.12974,1631.4,1630.8,1.5171]
[1744725688505,6.12974,1631.4,1631.0,6.1312]
[1744725688878,6.13022,1631.3,1631.0,6.13115]
[1744725689209,6.1301,1631.3,1630.6,16.08865]
[1744725689363,1.6476,1631.5,1630.6,6.13266]
[1744725689557,6.13313,1630.5,1629.9,1.5992]
[1744725689807,6.13233,1630.7,1629.7,6.13593]
[1744725689961,1.5622,1630.6,1630.1,6.1343]
[1744725690164,7.69495,1630.6,1629.8,6.13568]
[1744725690518,6.13453,1630.2,1629.6,1.5992]
[1744725690660,0.769495,1630.5,1629.7,0.06135373]
[1744725690863,6.13456,1630.2,1629.7,6.13576]
[1744725691103,1.5622,1630.6,1630.2,6.13418]
[1744725691407,7.69516,1630.6,1630.2,6.13418]
[1744725691713,1.5622,1630.6,1630.2,6.1342]
[1744725692016,1.5622,1630.6,1629.6,1.5992]
[1744725692017,6.13201,1630.8,1630.4,6.13326]
[1744725692185,12.26418,1630.8,1630.4,6.13326]
[1744725692499,6.13313,1630.5,1630.1,6.13435]
[1744725692676,6.13241,1630.7,1630.0,6.13494]
[1744725692883,6.13261,1630.7,1629.9,6.13515]
[1744725693088,6.745871,1630.7,1629.9,6.13534]
[1744725693274,6.13434,1630.2,1629.8,6.1357]
[1744725693615,6.13482,1630.1,1629.7,6.13601]
[1744725693968,1.5213,1630.4,1629.7,6.13609]
[1744725694171,1.5213,1630.4,1629.7,6.13605]
[1744725694369,6.13483,1630.1,1629.7,6.13601]
[1744725694616,6.13413,1630.3,1629.8,6.13569]
[1744725694826,1.5213,1630.4,1629.8,6.1355]
[1744725695122,6.13386,1630.3,1629.9,6.13515]
[1744725695310,13.78848,1630.4,1630.0,6.13482]
[1744725695511,7.70721,1630.7,1630.3,6.13377]
[1744725695715,6.13361,1630.4,1630.0,6.13484]
[1744725695914,12.26895,1630.2,1629.8,6.13571]
[1744725696219,0.7,1630.3,1629.5,0.764306]
[1744725696703,6.13384,1630.3,1629.9,6.13501]
[1744725697025,6.13427,1630.2,1629.8,6.13559]
[1744725697170,12.26869,1630.2,1629.8,6.13557]
[1744725697377,6.13499,1630.0,1629.7,6.13608]
[1744725697922,6.13499,1630.0,1629.6,12.27268]
[1744725698114,1.5664,1630.5,1629.7,0.06135861]
[1744725698315,1.5664,1630.5,1629.9,6.13527]
[1744725698519,6.13363,1630.4,1630.0,6.13482]
[1744725698728,6.13538,1629.9,1629.5,6.13682]
[1744725698871,6.13538,1629.9,1629.6,6.13647]
[1744725699245,1.5664,1630.3,1629.7,0.06135871]
[1744725699446,1.5664,1630.3,1629.8,6.13548]
[1744725699601,1.5664,1630.3,1629.4,6.13709]
[1744725699602,7.70027,1630.3,1629.4,6.13709]
[1744725699800,1.5664,1630.3,1629.7,6.13575]
[1744725700141,1.5664,1630.3,1629.6,6.13616]
[1744725700345,6.13436,1630.2,1629.8,6.1356]
[1744725700574,6.13428,1630.2,1629.8,6.13544]
[1744725700706,6.13513,1630.0,1629.7,6.13591]
[1744725701047,12.86257956,1630.2,1629.2,1.507]
[1744725701212,6.13757,1629.4,1629.0,6.13857]
[1744725701403,6.13757,1629.4,1629.1,6.18832]
[1744725701599,6.13747,1629.4,1629.1,0.05]
[1744725701833,6.13781,1629.3,1629.1,0.05]
[1744725702042,7.68037,1629.5,1629.1,6.18822]
[1744725702360,6.13739,1629.4,1629.1,0.05]
[1744725702508,6.13776,1629.3,1629.1,0.05]
[1744725702905,6.13798,1629.2,1629.1,0.05]
[1744725703334,6.13776,1629.3,1629.1,0.05]
[1744725703539,1.5435,1629.5,1629.1,6.18829]
[1744725703743,1.5435,1629.5,1629.2,6.13776]
[1744725703901,7.68046,1629.5,1629.1,6.1882]
[1744725704107,1.5435,1629.5,1629.1,6.18827]
[1744725704445,7.6806,1629.5,1629.1,12.3264]
[1744725704615,1.5435,1629.5,1629.2,6.13785]
[1744725704798,1.5435,1629.5,1629.2,6.13777]
[1744725705002,1.5435,1629.5,1629.2,6.13795]
[1744725705201,1.5435,1629.5,1629.2,6.13784]
[1744725705440,1.5435,1629.5,1629.2,6.13781]
[1744725705647,7.68035,1629.5,1629.2,6.13796]
[1744725705830,1.5435,1629.5,1629.2,12.27592]
[1744725706147,6.13776,1629.3,1629.1,0.05]
[1744725706354,1.5435,1629.5,1629.2,6.13767]
[1744725706502,6.13584,1629.8,1629.4,6.13702]
[1744725706719,1.5876,1629.9,1629.3,6.1376]
[1744725706921,13.85858,1629.9,1629.5,12.27327]
[1744725707152,6.13592,1629.8,1629.4,6.1371]
[1744725707350,1.5876,1629.9,1629.5,6.1367]
[1744725707351,7.723,1629.9,1629.5,6.1367]
[1744725707559,6.13584,1629.8,1629.5,6.1367]
[1744725707720,6.13611,1629.7,1629.4,6.13718]
[1744725707916,8.31596956,1629.9,1629.1,1.6108]
[1744725708119,6.13583,1629.8,1629.4,6.13688]
[1744725708421,6.13702,1629.5,1629.2,6.13775]
[1744725708629,6.13572,1629.8,1629.1,0.05]
[1744725708630,6.13647,1629.6,1629.1,0.05]
[1744725708835,6.13798,1629.2,1629.1,0.05]
[1744725709236,6.13786,1629.3,1629.1,0.05]
[1744725709567,6.13798,1629.2,1629.1,0.05]
[1744725709922,7.65488,1629.2,1629.1,0.05]
[1744725710127,6.13727,1629.4,1629.1,0.05]
[1744725710351,12.27481,1629.4,1629.1,0.05]
[1744725710554,1.5169,1629.5,1629.1,6.18801]
[1744725710825,1.5169,1629.5,1629.3,6.13759]
[1744725711036,7.6541,1629.5,1629.1,6.18829]
[1744725711275,0.8,1629.4,1629.1,0.05]
[1744725711429,6.13796,1629.3,1629.1,0.05]
[1744725711630,6.93734,1629.4,1629.1,0.05]
[1744725711866,0.8,1629.4,1629.3,6.1376]
[1744725712475,0.8,1629.4,1629.3,6.19896962]
[1744725712641,6.13613,1629.7,1629.4,6.13709]
[1744725712835,7.76358,1629.8,1629.4,12.2742]
[1744725713054,7.76358,1629.8,1629.5,6.13672]
[1744725713250,1.6277,1629.8,1629.5,12.27344]
[1744725713462,1.6277,1629.8,1629.6,6.13645]
[1744725713763,7.76355,1629.8,1629.5,6.13672]
[1744725713969,7.76343,1629.8,1629.5,6.13671]
[1744725714265,6.13609,1629.7,1629.1,1.6235]
[1744725714463,6.13798,1629.2,1629.1,0.05]
[1744725714967,16.09736956,1629.6,1629.2,6.13785]
[1744725714968,7.66847,1629.6,1629.2,6.13785]
[1744725715268,1.5317,1629.6,1629.2,6.13791]
[1744725715505,1.5317,1629.6,1629.3,6.13759]
[1744725715625,6.13798,1629.2,1629.1,0.05]
[1744725715830,6.13778,1629.3,1629.1,0.05]
[1744725716230,9.369,1629.5,1629.1,0.05]
[1744725716231,0.8,1629.2,1629.1,0.05]
[1744725716563,9.369,1629.5,1629.1,0.05]
[1744725716564,6.13771,1629.3,1629.1,0.05]
[1744725716919,6.13798,1629.2,1629.1,0.05]
[1744725717123,7.365549,1629.2,1629.1,0.05]
[1744725718365,6.13737,1629.4,1629.1,6.18815]
[1744725718534,9.369,1629.5,1629.1,0.05]
[1744725718734,6.13685,1629.5,1629.1,6.18834]
[1744725718934,6.13742,1629.4,1629.1,0.05]
[1744725719134,6.13798,1629.2,1629.1,0.05]
[1744725719364,7.365552,1629.2,1629.1,0.05]
[1744725719565,6.13798,1629.2,1629.1,0.05]
[1744725720124,7.70018,1629.2,1629.1,0.05]
[1744725720327,17.07018,1629.2,1629.1,1e-05]
[1744725720527,6.14106,1628.4,1628.1,6.19197]
[1744725720729,6.1408,1628.5,1628.2,6.14168]
[1744725720928,6.13987,1628.7,1628.3,6.14132]
[1744725721146,1.5112,1628.9,1628.1,6.19196]
[1744725721370,2.33515696,1628.9,1628.2,6.14157]
[1744725721574,1.5112,1628.9,1628.6,6.1401]
[1744725721778,1.5112,1628.9,1628.1,6.25347016]
[1744725721779,1.5112,1628.9,1628.8,6.13948]
[1744725722080,0.8,1629.2,1629.1,6.13835]
[1744725722235,7.64739,1629.7,1628.9,6.13883]
[1744725722578,7.64739,1629.7,1629.0,0.06137365]
[1744725722579,7.64767,1629.7,1629.0,0.06137365]
[1744725722778,6.13821,1629.2,1628.8,12.27885]
[1744725722923,1.5112,1629.7,1629.1,6.13835]
[1744725723283,1.5112,1629.7,1629.2,6.13777]
[1744725723461,6.13699,1629.5,1629.2,6.13777]
[1744725723643,6.13738,1629.4,1629.1,6.13818]
[1744725723980,7.64735,1629.7,1629.1,6.13806]
[1744725724135,6.13728,1629.4,1629.1,6.13726]
[1744725724334,7.64735,1629.7,1628.7,6.13986]
[1744725724335,6.13647,1629.6,1628.7,6.13986]
[1744725724572,6.13798,1629.2,1628.2,6.14172]
[1744725724874,1.5815,1629.3,1629.0,6.13836]
[1744725725098,12.27423,1629.5,1629.1,12.27637]
[1744725725377,6.13737,1629.4,1629.0,6.13859]
[1744725725594,6.13893,1629.0,1628.4,1.6245]
[1744725725889,6.13963,1628.8,1628.5,6.14062]
[1744725726087,6.14004,1628.7,1628.4,6.14093]
[1744725726289,0.8,1628.9,1628.2,6.14173]
[1744725726445,6.13986,1628.7,1628.1,0.05]
[1744725726650,2.156386,1628.6,1628.2,6.14158]
[1744725726875,1.5424,1628.6,1628.1,0.05]
[1744725727047,12.2825,1628.4,1628.1,0.05]
[1744725727247,6.1412,1628.4,1628.1,6.19212]
[1744725727649,6.1407,1628.5,1628.1,0.05]
[1744725727863,6.1413,1628.4,1628.1,0.05]
[1744725728182,12.89637,1628.4,1628.1,0.05]
[1744725728347,1.5424,1628.6,1628.2,6.14148]
[1744725728549,1.5424,1628.6,1628.1,0.05]
[1744725728848,1.5424,1628.6,1628.3,6.14102]
[1744725729075,1.5424,1628.6,1628.1,6.19205]
[1744725729379,6.14115,1628.4,1628.1,0.05]
[1744725729679,6.14153,1628.3,1628.1,0.05]
[1744725730192,6.13948,1628.8,1628.1,0.05]
[1744725730394,6.14035,1628.6,1628.2,6.14175]
[1744725730544,6.13951,1628.8,1628.1,7.76617193]
[1744725730743,6.13951,1628.8,1628.4,12.28155]
[1744725730951,2.3502,1628.9,1628.1,1.5629]
[1744725731154,0.8,1628.9,1628.7,6.13965]
[1744725731376,0.8,1628.9,1628.6,12.28031]
[1744725731585,0.8,1628.9,1628.7,6.13983]
[1744725732095,1e-05,1628.9,1628.8,6.13948]
[1744725732397,6.13737,1629.4,1629.0,6.1386]
[1744725732552,12.27477,1629.4,1629.0,6.13842]
[1744725732891,6.13735,1629.4,1629.1,6.13824]
[1744725733108,6.13915,1628.9,1628.6,6.13995]
[1744725733289,6.05,1629.4,1628.4,1.5846]
[1744725733601,6.13722,1629.4,1628.8,6.13946]
[1744725733806,6.13904,1629.0,1628.4,1.5846]
[1744725733972,6.13959,1628.8,1628.3,6.14137]
[1744725734325,1.6344,1629.0,1628.7,6.13961]
[1744725734609,1.6344,1629.0,1628.4,0.06140241]
[1744725734788,1.6344,1629.0,1628.1,7.79651]
[1744725734789,1.5743,1629.4,1628.7,6.13986]
[1744725734963,6.13773,1629.3,1628.7,6.753836]
[1744725735170,6.1387,1629.1,1628.7,6.753726]
[1744725735361,6.13798,1629.2,1628.6,6.14015]
[1744725735672,6.13788,1629.3,1628.7,6.13959]
[1744725735673,6.1376,1629.3,1628.7,6.13959]
[1744725735879,6.13895,1629.0,1628.6,12.28018]
[1744725736213,7.71157,1629.4,1628.8,6.13948]
[1744725736515,6.13774,1629.3,1629.0,6.13839]
[1744725736712,6.13765,1629.3,1628.7,6.13983]
[1744725736863,7.71161,1629.4,1628.7,6.753813]
[1744725737063,6.13763,1629.3,1629.0,6.13844]
[1744725737265,1.5743,1629.4,1628.9,6.13897]
[1744725737507,6.1382,1629.2,1628.9,6.13895]
[1744725737799,6.13814,1629.2,1628.8,6.13922]
[1744725738197,6.1362,1629.7,1629.3,6.13726]
[1744725738405,5.23334084,1630.4,1629.6,1.6592]
[1744725738578,5.23334084,1630.4,1630.1,6.13423]
[1744725738974,5.23334084,1630.4,1630.0,6.13489]
[1744725739173,5.23334084,1630.4,1630.1,6.13456]
[1744725739590,5.23334084,1630.4,1630.0,6.13493]
[1744725739772,5.23334084,1630.4,1630.1,6.13453]
[1744725739967,5.23334084,1630.4,1630.0,12.26972]
[1744725740305,5.23334084,1630.4,1630.1,6.13428]
[1744725740900,15.22235,1630.7,1629.6,10.7492]
[1744725741100,1.6219,1630.8,1630.1,1.6641]
[1744725741286,1.6219,1630.8,1630.5,6.13294]
[1744725741603,7.75391,1630.8,1630.3,6.13369]
[1744725741770,1.6219,1630.8,1630.2,6.1342]
[1744725741971,6.13272,1630.6,1630.1,6.13452]
[1744725742167,1.6219,1630.8,1630.1,1.226945]
[1744725742497,1.6219,1630.8,1630.5,6.13307]
[1744725742670,1.6219,1630.8,1629.8,7.79973]
[1744725742871,1.6219,1630.8,1630.1,6.13442]
[1744725742872,6.13262,1630.7,1630.1,6.13442]
[1744725743192,6.13269,1630.7,1630.2,6.13408]
[1744725743370,6.13307,1630.6,1629.8,7.79981]
[1744725743571,6.13302,1630.6,1630.1,6.13447]
[1744725743793,12.26602,1630.6,1630.1,6.13447]
[1744725743994,6.13294,1630.6,1630.1,6.13444]
[1744725744306,12.64761036,1630.6,1629.6,6.13617]
[1744725744508,6.13546,1629.9,1629.4,6.1371]
[1744725744707,1.6126,1630.1,1629.3,6.13753]
[1744725744914,9.086,1630.0,1629.3,6.1376]
[1744725745108,6.13585,1629.8,1629.3,12.27498]
[1744725745426,6.13558,1629.9,1629.4,12.27423]
[1744725745572,6.749488,1629.8,1629.2,12.27578]
[1744725745772,6.13621,1629.7,1629.2,6.13783]
[1744725745985,0.613558,1629.8,1629.4,6.13706]
[1744725746208,0.613558,1629.8,1629.0,6.13868]
[1744725746505,6.13686,1629.5,1629.0,6.13852]
[1744725746896,1.5843,1629.6,1629.3,6.13733]
[1744725747298,1.5843,1629.6,1629.4,6.13705]
[1744725747604,6.13631,1629.7,1629.1,1.6269]
[1744725747804,6.13659,1629.6,1629.0,6.13873]
[1744725748010,6.13635,1629.7,1628.9,15.2251]
[1744725748314,6.13702,1629.5,1629.0,12.27716]
[1744725748513,12.27328,1629.6,1629.1,6.13822]
[1744725748696,6.13649,1629.6,1628.8,1.6411]
[1744725748885,14.48253956,1629.9,1628.9,6.13911]
[1744725748886,1.6188,1629.9,1628.9,6.13911]
[1744725749091,7.77815,1630.2,1629.4,6.13722]
[1744725749303,0.777815,1630.1,1629.3,6.1376]
[1744725749502,6.13282,1630.6,1629.7,6.13609]
[1744725749503,1.6439,1630.6,1629.7,6.13609]
[1744725749700,1.6439,1630.6,1629.0,57.151]
[1744725749701,5.26103545,1630.9,1630.8,6.13195]
[1744725750007,5.26103545,1630.9,1630.6,6.13264]
[1744725750176,5.26103545,1630.9,1630.6,6.13237]
[1744725750373,5.951529,1630.9,1630.6,6.13237]
[1744725750589,5.951529,1630.9,1630.5,6.13306]
[1744725750819,5.951529,1630.9,1630.6,6.13255]
[1744725751020,12.083409,1630.9,1630.3,6.13371]
[1744725751189,6.13309,1630.5,1630.0,6.13468]
[1744725751511,0.613309,1630.4,1630.1,6.13453]
[1744725751717,1.6645,1630.5,1630.1,6.13443]
[1744725751878,1.6645,1630.5,1630.2,6.13417]
[1744725752082,15.21924,1630.8,1630.3,6.13368]
[1744725752413,13.710439,1630.9,1630.4,6.13325]
[1744725752587,7.578829,1630.9,1630.1,6.13457]
[1744725752794,7.578829,1630.9,1630.5,6.13296]
[1744725753144,2.31779355,1630.9,1630.4,6.13309]
[1744725753317,6.13239,1630.7,1630.2,6.13406]
[1744725753617,6.13239,1630.7,1629.8,7.66327]
[1744725753618,6.05,1630.7,1629.8,1.5277]
[1744725753916,7.79621,1630.4,1629.9,12.27048]
[1744725754087,7.79621,1630.4,1629.9,6.13521]
[1744725754291,1.6627,1630.4,1629.8,6.13566]
[1744725754506,7.79623,1630.4,1629.9,6.13533]
[1744725754707,1.6627,1630.4,1629.7,6.13588]
[1744725754885,1.6627,1630.4,1630.1,6.13441]
[1744725755220,1.6627,1630.4,1629.7,6.749468]
[1744725755221,6.13312,1630.5,1629.7,6.13609]
[1744725755519,6.13312,1630.5,1630.0,6.13495]
[1744725755821,12.2664,1630.5,1630.1,6.13447]
[1744725756022,12.2694,1630.1,1629.6,6.13621]
[1744725756192,7.51285,1630.1,1629.6,6.13621]
[1744725756394,6.13592,1629.8,1629.4,6.13705]
[1744725756616,6.13586,1629.8,1629.1,6.13832]
[1744725756917,6.13649,1629.6,1629.2,12.27548]
[1744725757118,6.13649,1629.6,1629.2,12.27552]
[1744725757312,7.64921,1629.7,1629.4,6.13702]
[1744725757313,1.5131,1629.7,1629.4,6.13702]
[1744725757507,1.5131,1629.7,1629.0,1.5406]
[1744725757709,6.13659,1629.6,1628.8,6.13921]
[1744725757911,1.5131,1629.7,1628.9,6.752831]
[1744725758107,13.78594,1629.7,1629.3,6.13725]
[1744725758313,12.27335,1629.6,1629.2,6.1379]
[1744725758509,7.64927,1629.7,1629.2,6.13785]
[1744725758822,7.64927,1629.7,1629.0,6.13862]
[1744725758823,6.13741,1629.4,1629.0,6.13862]
[1744725758988,6.13684,1629.6,1629.2,6.13775]
[1744725759321,1.5131,1629.7,1628.8,6.13948]
[1744725759541,6.1365,1629.6,1628.7,10.7294]
[1744725759739,6.13673,1629.6,1628.9,6.13911]
[1744725760039,1.5131,1629.7,1629.4,12.27411]
[1744725760203,7.64925,1629.7,1629.3,6.13737]
[1744725760404,7.64925,1629.7,1629.4,6.13715]
[1744725760610,7.64925,1629.7,1628.9,6.13899]
[1744725760611,6.13647,1629.6,1628.7,16.86912]
[1744725760826,12.27337,1629.6,1629.2,6.13763]
[1744725761026,12.27345,1629.6,1629.2,12.27549]
[1744725761231,6.13665,1629.6,1629.2,12.27549]
[1744725761449,6.13665,1629.6,1629.2,6.13763]
[1744725761622,6.750635,1629.5,1629.1,6.13818]
[1744725761944,6.13703,1629.5,1629.1,6.13821]
[1744725762319,6.13787,1629.3,1628.9,6.13907]
[1744725762520,12.27565,1629.3,1628.9,6.13897]
[1744725762705,6.13724,1629.4,1629.0,6.13862]
[1744725762920,6.13771,1629.3,1628.9,6.13897]
[1744725763107,12.27552,1629.3,1628.9,6.13897]
[1744725763311,6.13771,1629.3,1628.8,6.13922]
[1744725763522,6.13744,1629.4,1629.0,6.13861]
[1744725763713,12.27573,1629.3,1628.9,6.13899]
[1744725763909,12.18686,1629.5,1628.9,6.13899]
[1744725764109,12.18686,1629.5,1628.8,6.13943]
[1744725764110,6.1387,1629.1,1628.7,6.13971]
[1744725764308,6.1386,1629.1,1628.7,6.13977]
[1744725764548,6.13771,1629.3,1628.6,6.14014]
[1744725764746,6.13962,1628.8,1628.4,6.14064]
[1744725764949,6.13962,1628.8,1628.5,6.14058]
[1744725765153,6.139,1629.0,1628.1,1.71]
[1744725765154,6.14116,1628.4,1628.1,0.05]
[1744725765448,7.71143,1629.0,1628.1,0.05]
[1744725765449,6.13998,1628.7,1628.1,0.05]
[1744725765742,6.1399,1628.7,1628.1,0.05]
[1744725765930,7.71155,1629.0,1628.2,6.14175]
[1744725766131,6.14002,1628.7,1628.3,6.755315]
[1744725766330,7.74841,1628.7,1628.3,6.14122]
[1744725766508,1.6084,1628.7,1628.1,6.1921]
[1744725766711,8.68942834,1629.0,1628.3,6.14118]
[1744725766929,8.68942834,1629.0,1628.1,0.05]
[1744725766930,6.14117,1628.4,1628.1,0.05]
[1744725767143,6.14151,1628.3,1628.1,0.05]
[1744725767345,12.28318,1628.3,1628.1,0.05]
[1744725767506,7.64745,1628.2,1628.1,0.05]
[1744725767711,30.110863,1628.2,1628.1,1e-05]
[1744725767937,22.846381,1628.2,1628.1,1e-05]
[1744725768246,6.14458,1627.5,1627.1,0.05]
[1744725768446,7.75977,1627.6,1627.2,6.14532]
[1744725768642,1.6156,1627.6,1627.4,6.14459]
[1744725768829,6.14291,1627.9,1627.4,6.14459]
[1744725768830,6.14345,1627.8,1627.4,6.14459]
[1744725769242,7.75849,1627.9,1627.5,6.14416]
[1744725769551,1.6156,1627.9,1627.7,6.14349]
[1744725769750,1.6156,1627.9,1627.2,0.619532]
[1744725769920,1.6156,1627.9,1627.1,0.05]
[1744725769921,1.6156,1627.9,1627.6,6.14387]
[1744725770113,7.75863,1627.9,1627.5,12.2885]
[1744725770444,1.6156,1627.9,1627.6,6.14396]
[1744725770657,6.14464,1627.5,1627.2,6.14539]
[1744725770947,6.14464,1627.5,1627.1,12.3416]
[1744725771244,6.14552,1627.2,1627.1,0.05]
[1744725771822,6.14703,1626.8,1626.7,0.005]
[1744725772030,14.50599956,1626.8,1626.7,0.005]
[1744725772430,0.8702,1626.5,1626.1,0.05]
[1744725772855,7.01737,1626.8,1626.3,6.1489]
[1744725773165,7.7239,1626.2,1626.1,0.05]
[1744725773862,7.79513,1625.9,1625.8,0.3924884]
[1744725774061,8.37306956,1625.9,1625.4,0.9966]
[1744725774359,8.37306956,1625.9,1625.4,1e-05]
[1744725774360,14.49991956,1625.5,1625.4,1e-05]
[1744725774573,9.83671396,1625.5,1625.4,1e-05]
[1744725774734,1.6196,1625.8,1625.5,6.15171]
[1744725774934,14.49775956,1626.1,1625.5,6.15166]
[1744725775438,2.07331349,1626.1,1625.6,6.15157]
[1744725775692,1.5177,1626.0,1625.4,1e-05]
[1744725775971,6.72836956,1625.7,1625.4,1e-05]
[1744725776156,6.15195,1625.5,1625.4,1e-05]
[1744725776356,7.71088,1625.2,1625.1,0.05]
[1744725776568,23.61124956,1625.2,1625.1,0.05]
[1744725776786,6.15649,1624.3,1624.2,0.3924884]
[1744725776938,10.25446756,1624.3,1624.2,0.3924884]
[1744725777138,6.72836956,1624.3,1624.2,0.3924884]
[1744725777690,14.39165956,1624.3,1624.2,0.04906105]
[1744725778267,43.51069556,1624.3,1624.2,0.04906105]